fUST/lending_fUST_20250529
["ID","MTS","AMOUNT","RATE_DAILY","PERIOD"]
[362843070,1748485846043,-853.24,0.00022908,2]
[362843073,1748485846053,-287.74703245,0.00022908,2]
[362843076,1748485846061,-430.0,0.00022908,2]
[362843079,1748485846071,-435.89512934,0.00022909,2]
[362843082,1748485846080,-541.54087735,0.00022909,2]
[362843084,1748485846089,-430.0,0.0002291,2]
[362843087,1748485846099,-471.99,0.0002291,2]
[362843090,1748485846108,-556.43,0.0002291,2]
[362843093,1748485846117,-741.81,0.0002291,2]
[362843095,1748485846126,-1000.0,0.00022941,7]
[362843097,1748485846134,-298.88928465,0.00022941,2]
[362843107,1748485846202,-430.0,0.00019178,2]
[362843110,1748485846212,-165.24554076,0.00019451,2]
[362843113,1748485846222,-420.0,0.00021661,2]
[362843116,1748485846231,-1003.206359,0.000225,2]
[362843119,1748485846240,-701.11071535,0.00022941,2]
[362843122,1748485846249,-2450.98326218,0.00023,2]
[362843125,1748485846259,-834.31411844,0.00023,2]
[362843129,1748485846270,-1001.846831,0.00023,2]
[362843132,1748485846285,-2755.59105624,0.00023,2]
[362843218,1748485846848,-430.0,0.00019178,2]
[362843220,1748485846858,-430.0,0.00019178,2]
[362843222,1748485846868,-543.7,0.00019452,2]
[362843223,1748485846878,-83.99041136,0.00019452,2]
[362843227,1748485846908,-366.53750699,0.00019452,2]
[362843230,1748485846918,-12660.97845086,0.00020774,2]
[362843232,1748485846928,-16855.24799432,0.00023,2]
[362843234,1748485846937,-5538.71,0.00023,7]
[362843235,1748485846947,-552.94389445,0.00023,30]
[362843237,1748485846956,-500.0,0.00023,30]
[362843239,1748485846965,-515.26891917,0.00023,30]
[362843241,1748485846975,-151.0,0.00023,8]
[362843243,1748485846985,-153.948683,0.00023,7]
[362843245,1748485846994,-153.948683,0.00023,7]
[362843247,1748485847004,-152.215926,0.00023,7]
[362843249,1748485847013,-151.0,0.00023,7]
[362843251,1748485847022,-160.0,0.00023,3]
[362843253,1748485847034,-160.0,0.00023,3]
[362843255,1748485847042,-151.0,0.00023,7]
[362843257,1748485847052,-151.0,0.00023,7]
[362843260,1748485847061,-151.0,0.00023,7]
[362843262,1748485847070,-151.0,0.00023,7]
[362843264,1748485847079,-151.0,0.00023,7]
[362843265,1748485847088,-151.0,0.00023,7]
[362843267,1748485847096,-151.0,0.00023,7]
[362843268,1748485847105,-151.0,0.00023,7]
[362843269,1748485847114,-151.0,0.00023,7]
[362843270,1748485847123,-428.533647,0.00023,7]
[362843271,1748485847131,-428.533647,0.00023,7]
[362843272,1748485847140,-164.368759,0.00023,7]
[362843273,1748485847149,-934.358223,0.00023,7]
[362843274,1748485847157,-164.368759,0.00023,7]
[362843275,1748485847167,-934.358223,0.00023,7]
[362843276,1748485847176,-151.0,0.00023,7]
[362843277,1748485847185,-151.0,0.00023,7]
[362843278,1748485847195,-254.345546,0.00023,7]
[362843279,1748485847204,-151.0,0.00023,7]
[362843280,1748485847213,-151.0,0.00023,7]
[362843282,1748485847223,-151.0,0.00023,7]
[362843284,1748485847232,-151.0,0.00023,7]
[362843286,1748485847240,-151.0,0.00023,7]
[362843288,1748485847250,-151.0,0.00023,7]
[362843290,1748485847259,-160.0,0.00023,3]
[362843292,1748485847269,-151.0,0.00023,7]
[362843294,1748485847280,-185.288657,0.00023,7]
[362843296,1748485847290,-160.0,0.00023,3]
[362843298,1748485847300,-229.26895353,0.00023,3]
[362843300,1748485847310,-151.0,0.00023,7]
[362843302,1748485847320,-423.31762986,0.00023,3]
[362843304,1748485847329,-327.93594019,0.00023,2]
[362843306,1748485847343,-151.0,0.00023,7]
[362843308,1748485847352,-482.89524186,0.00023003,8]
[362843310,1748485847362,-151.0,0.00023004,7]
[362843312,1748485847372,-151.0,0.00023004,7]
[362843314,1748485847381,-1166.479949,0.00023004,7]
[362843316,1748485847390,-727.28,0.00023007,6]
[362843318,1748485847400,-151.0,0.00023007,7]
[362843320,1748485847410,-500.0,0.00023013,2]
[362843322,1748485847420,-430.0,0.00023013,2]
[362843324,1748485847429,-973.33,0.00023013,2]
[362843326,1748485847438,-177.0,0.00023014,7]
[362843328,1748485847448,-8851.7,0.00023026,2]
[362843330,1748485847457,-154.122783,0.00023067,7]
[362843332,1748485847466,-151.0,0.00023067,7]
[362843334,1748485847475,-727.28,0.00023107,7]
[362843336,1748485847484,-151.0,0.00023107,7]
[362843338,1748485847493,-482.89524186,0.00023176,8]
[362843340,1748485847502,-1219.14,0.00023182,2]
[362843342,1748485847512,-853.24,0.00023182,2]
[362843344,1748485847521,-430.0,0.00023182,2]
[362843346,1748485847533,-430.0,0.00023184,2]
[362843348,1748485847541,-471.99,0.00023184,2]
[362843350,1748485847551,-556.43,0.00023184,2]
[362843352,1748485847560,-741.81,0.00023184,2]
[362843354,1748485847569,-421.651388,0.00023186,7]
[362843356,1748485847578,-421.651388,0.00023186,7]
[362843358,1748485847588,-1252.38380809,0.000232,7]
[362843735,1748486096088,161.844662,0.00013699,2]
[362843737,1748486281595,-300.0,0.00019177,2]
[362843738,1748486281619,-300.0,0.00019177,2]
[362843739,1748486281639,-217.2773112,0.00019177,2]
[362843740,1748486281660,-455.24728689,0.00019177,2]
[362843741,1748486281682,-501.62869451,0.00019177,2]
[362843742,1748486281703,-244.26426095,0.00019177,2]
[362843743,1748486281725,-500.0,0.00019177,2]
[362843744,1748486281748,-631.31548301,0.00019177,2]
[362843745,1748486281770,-474.18114662,0.00019177,2]
[362843746,1748486281792,-500.0,0.00019177,2]
[362843747,1748486281815,-455.54584534,0.00019178,2]
[362843748,1748486281837,-500.23436,0.00019178,2]
[362843749,1748486281858,-465.78607185,0.00019178,2]
[362843750,1748486281884,-473.70125844,0.00019178,2]
[362843751,1748486281907,-455.60232698,0.00019178,2]
[362843752,1748486281929,-175.21675825,0.00019178,2]
[362843753,1748486281951,-430.0,0.00019178,2]
[362843754,1748486281975,-489.19393928,0.00019178,2]
[362843755,1748486282004,-477.89616304,0.00019178,2]
[362843756,1748486282028,-482.6791867,0.00019178,2]
[362843757,1748486282056,-430.0,0.00019178,2]
[362843758,1748486282080,-441.3225966,0.00019178,2]
[362843759,1748486282103,-430.0,0.00019178,2]
[362843760,1748486282129,-481.80889021,0.00019178,2]
[362843761,1748486282154,-430.0,0.00019178,2]
[362843762,1748486282177,-430.0,0.00019178,2]
[362843763,1748486282201,-430.0,0.00019178,2]
[362843764,1748486282225,-430.0,0.00019178,2]
[362843765,1748486282251,-731.87,0.00019178,2]
[362843766,1748486282280,-430.0,0.00019178,2]
[362843767,1748486282305,-430.0,0.00019178,2]
[362843768,1748486282328,-503.07787364,0.00019178,2]
[362843769,1748486282350,-437.66085295,0.00019178,2]
[362843770,1748486282376,-430.0,0.00019178,2]
[362843771,1748486282399,-457.49996348,0.00019178,2]
[362843772,1748486282421,-461.50487937,0.00019178,2]
[362843773,1748486282446,-430.0,0.00019178,2]
[362843774,1748486282468,-430.0,0.00019178,2]
[362843775,1748486282491,-430.0,0.00019178,2]
[362843776,1748486282513,-450.65530307,0.00019178,2]
[362843777,1748486282538,-430.0,0.00019178,2]
[362843778,1748486282562,-471.64,0.00019178,2]
[362843779,1748486282584,-465.51045054,0.00019178,2]
[362843780,1748486282606,-457.91659335,0.00019178,2]
[362843781,1748486282630,-430.0,0.00019178,2]
[362843782,1748486282652,-89.76250373,0.00019178,2]
[362843824,1748487031924,-616.15756864,0.00018152,2]
[362843825,1748487031936,-2205.94704616,0.00018152,2]
[362843827,1748487031945,-9419.5556589,0.00018246,2]
[362843829,1748487031954,-180.43434297,0.00018259,2]
[362843831,1748487031964,-1299.82818232,0.000189,2]
[362843832,1748487031973,-300.0,0.00019077,2]
[362843834,1748487031984,-1656.91919496,0.00019078,2]
[362843836,1748487031993,-427.1703995,0.00019173,2]
[362843837,1748487032003,-500.0,0.00019173,2]
[362843839,1748487032012,-355.50459378,0.00019176,2]
[362843841,1748487032023,-500.0,0.00019176,2]
[362843842,1748487032032,-626.39314965,0.00019176,2]
[362843843,1748487032042,-55636.40752533,0.00019176,2]
[362843844,1748487032054,-384.81577874,0.00019176,2]
[362843845,1748487032065,-1022.6195265,0.00019176,2]
[362843899,1748487037739,-500.0,0.00019175,2]
[362843901,1748487037749,-500.0,0.00019175,2]
[362843903,1748487037759,-500.0,0.00019175,2]
[362843905,1748487037768,-301.79980479,0.00019175,2]
[362843907,1748487037777,-362.71603399,0.00019175,2]
[362843909,1748487037786,-500.0,0.00019175,2]
[362843911,1748487037796,-500.0,0.00019175,2]
[362843913,1748487037807,-500.0,0.00019175,2]
[362843915,1748487037816,-500.0,0.00019175,2]
[362843916,1748487037825,-500.0,0.00019175,2]
[362843918,1748487037835,-500.0,0.00019175,2]
[362843920,1748487037844,-553.85578417,0.00019175,2]
[362843922,1748487037853,-500.0,0.00019175,2]
[362843924,1748487037862,-32673.81094943,0.00019176,2]
[362843926,1748487037877,-42514.34354823,0.00019177,2]
[362843928,1748487037887,-155.372,0.00019177,2]
[362843930,1748487037896,-439.26676432,0.00019178,2]
[362843932,1748487037905,-437.9402397,0.00019178,2]
[362843934,1748487037915,-480.98377226,0.00019178,2]
[362843936,1748487037924,-442.55210783,0.00019178,2]
[362843938,1748487037933,-470.86628721,0.00019178,2]
[362843940,1748487037942,-450.78907915,0.00019178,2]
[362843942,1748487037952,-445.13113311,0.00019178,2]
[362843944,1748487037961,-443.56648936,0.00019178,2]
[362843946,1748487037971,-443.00132769,0.00019178,2]
[362843948,1748487037981,-519.89732094,0.00019178,2]
[362843950,1748487037990,-360.09339469,0.00019178,2]
[362843952,1748487037999,-436.72252352,0.00019178,2]
[362843954,1748487038009,-439.51597469,0.00019178,2]
[362843955,1748487038018,-453.29837282,0.00019178,2]
[362843956,1748487038028,-446.2359843,0.00019178,2]
[362843957,1748487038037,-444.6241941,0.00019178,2]
[362843958,1748487038047,-445.85260338,0.00019178,2]
[362843959,1748487038057,-288.45253385,0.00019178,2]
[362843960,1748487038068,-430.0,0.00019178,2]
[362843961,1748487038077,-477.39043164,0.00019178,2]
[362843962,1748487038086,-433.47096525,0.00019178,2]
[362843963,1748487038096,-430.0,0.00019178,2]
[362843964,1748487038107,-430.0,0.00019178,2]
[362843965,1748487038117,-430.0,0.00019178,2]
[362843966,1748487038126,-439.38179493,0.00019178,2]
[362843967,1748487038136,-468.09791661,0.00019178,2]
[362843968,1748487038145,-440.5044559,0.00019178,2]
[362843969,1748487038155,-445.92335713,0.00019178,2]
[362843970,1748487038164,-439.69243974,0.00019178,2]
[362843971,1748487038174,-430.0,0.00019178,2]
[362843972,1748487038183,-430.0,0.00019178,2]
[362843973,1748487038193,-572.51594142,0.00019178,2]
[362843974,1748487038209,-430.0,0.00019178,2]
[362843975,1748487038222,-441.95115847,0.00019178,2]
[362843976,1748487038232,-315.64008722,0.00019178,2]
[362843977,1748487038246,-478.41637184,0.00019178,2]
[362843978,1748487038255,-464.16982797,0.00019178,2]
[362843979,1748487038265,-430.0,0.00019178,2]
[362843980,1748487038274,-430.0,0.00019178,2]
[362843981,1748487038285,-430.0,0.00019178,2]
[362843982,1748487038296,-430.0,0.00019178,2]
[362843983,1748487038307,-430.0,0.00019178,2]
[362843984,1748487038317,-430.0,0.00019178,2]
[362843985,1748487038327,-430.0,0.00019178,2]
[362843986,1748487038349,-395.46345094,0.00019178,2]
[362843987,1748487038364,-648.33064866,0.00019178,2]
[362843988,1748487038381,-390.53,0.00019178,2]
[362843989,1748487038398,-503.46559812,0.00019178,2]
[362843990,1748487038415,-438.38289887,0.00019178,2]
[362843991,1748487038430,-430.0,0.00019178,2]
[362843992,1748487038442,-430.0,0.00019178,2]
[362843993,1748487038455,-430.0,0.00019178,2]
[362843994,1748487038468,-549.30935665,0.00019178,2]
[362843995,1748487038481,-497.58539568,0.00019178,2]
[362843996,1748487038493,-430.0,0.00019178,2]
[362843997,1748487038506,-445.34658479,0.00019178,2]
[362843998,1748487038519,-338.16,0.00019178,2]
[362843999,1748487038531,-447.84074957,0.00019178,2]
[362844000,1748487038544,-451.26202899,0.00019178,2]
[362844001,1748487038556,-430.0,0.00019178,2]
[362844002,1748487038571,-430.0,0.00019178,2]
[362844003,1748487038584,-434.9661582,0.00019178,2]
[362844004,1748487038597,-430.0,0.00019178,2]
[362844005,1748487038611,-430.0,0.00019178,2]
[362844006,1748487038623,-430.0,0.00019178,2]
[362844007,1748487038637,-440.37278522,0.00019178,2]
[362844008,1748487038650,-499.83698707,0.00019178,2]
[362844009,1748487038664,-430.0,0.00019178,2]
[362844010,1748487038676,-430.0,0.00019178,2]
[362844011,1748487038690,-441.92928062,0.00019178,2]
[362844012,1748487038702,-469.66763765,0.00019178,2]
[362844013,1748487038714,-449.18977202,0.00019178,2]
[362844014,1748487038726,-430.0,0.00019178,2]
[362844015,1748487038737,-417.61584057,0.00019178,2]
[362844016,1748487038748,-432.39381647,0.00019178,2]
[362844017,1748487038758,-430.0,0.00019178,2]
[362844018,1748487038769,-430.0,0.00019178,2]
[362844019,1748487038782,-407.58970198,0.00019178,2]
[362844020,1748487038794,-455.98446699,0.00019178,2]
[362844021,1748487038806,-430.0,0.00019178,2]
[362844022,1748487038817,-438.14006029,0.00019178,2]
[362844023,1748487038829,-525.63660537,0.00019178,2]
[362844024,1748487038843,-430.0,0.00019178,2]
[362844025,1748487038855,-430.0,0.00019178,2]
[362844026,1748487038868,-430.0,0.00019178,2]
[362844027,1748487038880,-455.80998309,0.00019178,2]
[362844028,1748487038893,-434.73156344,0.00019178,2]
[362844029,1748487038907,-430.0,0.00019178,2]
[362844030,1748487038921,-430.0,0.00019178,2]
[362844031,1748487038933,-430.0,0.00019178,2]
[362844032,1748487038945,-430.0,0.00019178,2]
[362844033,1748487038956,-424.11361612,0.00019178,2]
[362844034,1748487038967,-430.0,0.00019178,2]
[362844035,1748487038977,-430.0,0.00019178,2]
[362844036,1748487038990,-444.93434566,0.00019178,2]
[362844037,1748487039002,-430.0,0.00019178,2]
[362844038,1748487039016,-986.87,0.00019178,2]
[362844039,1748487039029,-430.0,0.00019178,2]
[362844040,1748487039041,-434.82423234,0.00019178,2]
[362844041,1748487039052,-472.90538885,0.00019178,2]
[362844042,1748487039062,-913.89,0.00019178,2]
[362844043,1748487039072,-430.0,0.00019178,2]
[362844044,1748487039083,-430.0,0.00019178,2]
[362844045,1748487039094,-308.8,0.00019178,2]
[362844046,1748487039105,-430.0,0.00019178,2]
[362844047,1748487039118,-430.0,0.00019178,2]
[362844048,1748487039129,-430.0,0.00019178,2]
[362844049,1748487039140,-430.0,0.00019178,2]
[362844050,1748487039150,-450.0,0.00019178,2]
[362844052,1748487039160,-430.0,0.00019178,2]
[362844054,1748487039171,-430.0,0.00019178,2]
[362844055,1748487039182,-490.51,0.00019178,2]
[362844056,1748487039193,-357.6678917,0.00019178,2]
[362844057,1748487039204,-441.52746359,0.00019178,2]
[362844058,1748487039215,-430.0,0.00019178,2]
[362844059,1748487039226,-430.0,0.00019178,2]
[362844060,1748487039241,-430.0,0.00019178,2]
[362844061,1748487039253,-291.24448214,0.00019178,2]
[362844062,1748487039268,-448.07,0.00019178,2]
[362844063,1748487039279,-430.0,0.00019178,2]
[362844064,1748487039294,-430.0,0.00019178,2]
[362844065,1748487039306,-430.0,0.00019178,2]
[362844066,1748487039318,-430.0,0.00019178,2]
[362844067,1748487039331,-430.0,0.00019178,2]
[362844068,1748487039342,-462.43514917,0.00019178,2]
[362844069,1748487039354,-616.43,0.00019178,2]
[362844070,1748487039365,-430.0,0.00019178,2]
[362844071,1748487039376,-430.0,0.00019178,2]
[362844072,1748487039386,-267.46021702,0.00019178,2]
[362844073,1748487039397,-430.0,0.00019178,2]
[362844074,1748487039408,-430.0,0.00019178,2]
[362844075,1748487039419,-430.0,0.00019178,2]
[362844076,1748487039429,-430.0,0.00019178,2]
[362844077,1748487039440,-430.0,0.00019178,2]
[362844078,1748487039451,-180.64716713,0.00019178,2]
[362844079,1748487039464,-430.0,0.00019178,2]
[362844080,1748487039476,-430.0,0.00019178,2]
[362844081,1748487039487,-550.0711865,0.00019178,2]
[362844082,1748487039498,-430.0,0.00019178,2]
[362844083,1748487039508,-430.0,0.00019178,2]
[362844084,1748487039519,-430.0,0.00019178,2]
[362844085,1748487039530,-435.32630249,0.00019178,2]
[362844086,1748487039542,-430.0,0.00019178,2]
[362844087,1748487039553,-430.0,0.00019178,2]
[362844088,1748487039565,-430.0,0.00019178,2]
[362844089,1748487039577,-430.0,0.00019178,2]
[362844090,1748487039588,-430.0,0.00019178,2]
[362844091,1748487039599,-259.68836517,0.00019178,2]
[362844092,1748487039610,-437.1291183,0.00019178,2]
[362844093,1748487039621,-430.0,0.00019178,2]
[362844094,1748487039632,-442.11697358,0.00019178,2]
[362844095,1748487039642,-800.41,0.00019178,2]
[362844096,1748487039653,-435.84050464,0.00019178,2]
[362844097,1748487039664,-430.0,0.00019178,2]
[362844098,1748487039675,-430.0,0.00019178,2]
[362844099,1748487039685,-437.57725089,0.00019178,2]
[362844100,1748487039696,-430.0,0.00019178,2]
[362844101,1748487039708,-430.0,0.00019178,2]
[362844102,1748487039718,-158.80618261,0.00019178,2]
[362844103,1748487039729,-430.0,0.00019178,2]
[362844104,1748487039740,-450.0,0.00019178,2]
[362844105,1748487039751,-430.0,0.00019178,2]
[362844106,1748487039762,-430.0,0.00019178,2]
[362844107,1748487039773,-154.5268924,0.00019178,2]
[362844108,1748487039784,-430.0,0.00019178,2]
[362844109,1748487039927,-466.72587475,0.00019178,2]
[362844110,1748487039943,-430.0,0.00019178,2]
[362844111,1748487039955,-430.0,0.00019178,2]
[362844112,1748487039965,-430.0,0.00019178,2]
[362844113,1748487039975,-430.0,0.00019178,2]
[362844114,1748487039984,-351.884747,0.00019178,2]
[362844115,1748487039994,-154.2438045,0.00019178,2]
[362844116,1748487040003,-430.0,0.00019178,2]
[362844117,1748487040013,-430.0,0.00019178,2]
[362844118,1748487040022,-401.49390236,0.00019178,2]
[362844119,1748487040031,-430.0,0.00019178,2]
[362844120,1748487040042,-431.75194376,0.00019178,2]
[362844121,1748487040051,-380.0,0.00019178,2]
[362844122,1748487040060,-437.75618716,0.00019178,2]
[362844123,1748487040070,-441.13698706,0.00019178,2]
[362844124,1748487040081,-450.0,0.00019178,2]
[362844125,1748487040091,-430.0,0.00019178,2]
[362844126,1748487040100,-430.0,0.00019178,2]
[362844127,1748487040110,-430.0,0.00019178,2]
[362844128,1748487040120,-451.59904857,0.00019178,2]
[362844129,1748487040129,-430.0,0.00019178,2]
[362844130,1748487040138,-430.0,0.00019178,2]
[362844131,1748487040148,-430.0,0.00019178,2]
[362844132,1748487040157,-430.0,0.00019178,2]
[362844133,1748487040166,-430.0,0.00019178,2]
[362844134,1748487040175,-402.29036854,0.00019178,2]
[362844135,1748487040184,-438.88568768,0.00019178,2]
[362844136,1748487040193,-430.0,0.00019178,2]
[362844137,1748487040202,-430.0,0.00019178,2]
[362844138,1748487040211,-437.43728677,0.00019178,2]
[362844139,1748487040221,-436.42190689,0.00019178,2]
[362844140,1748487040230,-430.0,0.00019178,2]
[362844141,1748487040243,-442.4905318,0.00019178,2]
[362844142,1748487040254,-441.12082223,0.00019178,2]
[362844143,1748487040264,-187.76743565,0.00019178,2]
[362844144,1748487040274,-430.0,0.00019178,2]
[362844145,1748487040284,-430.0,0.00019178,2]
[362844146,1748487040295,-430.0,0.00019178,2]
[362844147,1748487040304,-434.23476378,0.00019178,2]
[362844148,1748487040314,-430.0,0.00019178,2]
[362844149,1748487040326,-222.64966698,0.00019178,2]
[362844150,1748487040335,-430.0,0.00019178,2]
[362844151,1748487040348,-430.0,0.00019178,2]
[362844152,1748487040358,-430.0,0.00019178,2]
[362844153,1748487040367,-430.0,0.00019178,2]
[362844154,1748487040377,-430.0,0.00019178,2]
[362844155,1748487040386,-430.0,0.00019178,2]
[362844156,1748487040395,-430.0,0.00019178,2]
[362844157,1748487040404,-430.0,0.00019178,2]
[362844158,1748487040414,-962.56,0.00019178,2]
[362844159,1748487040424,-430.0,0.00019178,2]
[362844160,1748487040433,-375.57020865,0.00019178,2]
[362844161,1748487040443,-430.0,0.00019178,2]
[362844162,1748487040452,-412.65062192,0.00019178,2]
[362844163,1748487040461,-330.83223354,0.00019178,2]
[362844164,1748487040470,-430.0,0.00019178,2]
[362844165,1748487040479,-430.0,0.00019178,2]
[362844166,1748487040489,-430.0,0.00019178,2]
[362844167,1748487040498,-434.3404241,0.00019178,2]
[362844168,1748487040507,-430.0,0.00019178,2]
[362844169,1748487040516,-430.0,0.00019178,2]
[362844170,1748487040525,-501.97125824,0.00019178,2]
[362844171,1748487040534,-430.0,0.00019178,2]
[362844172,1748487040545,-207.29294429,0.00019178,2]
[362844173,1748487040555,-430.0,0.00019178,2]
[362844174,1748487040572,-430.0,0.00019178,2]
[362844175,1748487040582,-430.0,0.00019178,2]
[362844176,1748487040591,-430.0,0.00019178,2]
[362844177,1748487040601,-430.0,0.00019178,2]
[362844178,1748487040611,-430.0,0.00019178,2]
[362844179,1748487040620,-430.0,0.00019178,2]
[362844180,1748487040629,-408.39169077,0.00019178,2]
[362844181,1748487040639,-482.22822194,0.00019178,2]
[362844182,1748487040649,-430.0,0.00019178,2]
[362844183,1748487040658,-430.0,0.00019178,2]
[362844184,1748487040668,-430.0,0.00019178,2]
[362844185,1748487040679,-430.0,0.00019178,2]
[362844186,1748487040688,-430.0,0.00019178,2]
[362844187,1748487040697,-1264.39,0.00019178,2]
[362844188,1748487040707,-433.27107546,0.00019178,2]
[362844189,1748487040717,-190.2455167,0.00019178,2]
[362844190,1748487040727,-430.0,0.00019178,2]
[362844191,1748487040736,-500.0,0.00019178,2]
[362844192,1748487040745,-330.08155486,0.00019178,2]
[362844193,1748487040755,-500.0,0.00019178,2]
[362844194,1748487040764,-500.0,0.00019178,2]
[362844195,1748487040773,-430.0,0.00019178,2]
[362844196,1748487040783,-500.0,0.00019178,2]
[362844197,1748487040794,-500.0,0.00019178,2]
[362844198,1748487040803,-500.0,0.00019178,2]
[362844199,1748487040813,-430.0,0.00019178,2]
[362844200,1748487040822,-430.0,0.00019178,2]
[362844201,1748487040832,-198.45412451,0.00019178,2]
[362844202,1748487040841,-509.77721818,0.00019178,2]
[362844203,1748487040850,-293.025388,0.00019178,2]
[362844204,1748487040859,-1052.2,0.00019442,3]
[362844205,1748487040869,-2291.13,0.00019442,3]
[362844206,1748487040878,-1145.56,0.00019442,3]
[362844207,1748487040887,-572.78,0.00019442,3]
[362844208,1748487040896,-286.39,0.00019442,3]
[362844209,1748487040905,-859.22,0.00019442,3]
[362844210,1748487040914,-427.89174655,0.00019451,2]
[362844211,1748487040923,-430.0,0.00019452,2]
[362844212,1748487040933,-430.0,0.00019452,2]
[362844213,1748487040942,-430.0,0.00019452,2]
[362844214,1748487040951,-201.36480667,0.00019452,2]
[362844215,1748487040961,-430.0,0.00019452,2]
[362844216,1748487040970,-430.0,0.00019452,2]
[362844217,1748487040979,-430.0,0.00019452,2]
[362844218,1748487040989,-464.12490726,0.00019452,2]
[362844219,1748487040998,-439.10259243,0.00019452,2]
[362844220,1748487041007,-430.0,0.00019452,2]
[362844221,1748487041016,-375.98725003,0.00019452,2]
[362844222,1748487041026,-439.64517547,0.00019452,2]
[362844223,1748487041035,-257.41717826,0.00019452,2]
[362844224,1748487041045,-451.74921103,0.00019452,2]
[362844225,1748487041055,-430.0,0.00019452,2]
[362844226,1748487041064,-430.0,0.00019452,2]
[362844227,1748487041073,-430.0,0.00019452,2]
[362844228,1748487041085,-444.79412715,0.00019452,2]
[362844229,1748487041095,-430.0,0.00019452,2]
[362844230,1748487041104,-456.41081921,0.00019452,2]
[362844231,1748487041114,-430.0,0.00019452,2]
[362844232,1748487041123,-430.0,0.00019452,2]
[362844233,1748487041132,-430.0,0.00019452,2]
[362844234,1748487041142,-430.0,0.00019452,2]
[362844235,1748487041151,-436.96939055,0.00019452,2]
[362844236,1748487041161,-436.53858466,0.00019452,2]
[362844237,1748487041171,-430.0,0.00019452,2]
[362844238,1748487041180,-430.0,0.00019452,2]
[362844239,1748487041189,-430.0,0.00019452,2]
[362844240,1748487041198,-447.3428352,0.00019452,2]
[362844241,1748487041208,-430.0,0.00019452,2]
[362844242,1748487041219,-430.0,0.00019452,2]
[362844243,1748487041228,-430.0,0.00019452,2]
[362844244,1748487041239,-986.87,0.00019452,2]
[362844245,1748487041248,-443.04079944,0.00019452,2]
[362844246,1748487041257,-913.89,0.00019452,2]
[362844247,1748487041267,-430.0,0.00019452,2]
[362844248,1748487041276,-430.0,0.00019452,2]
[362844249,1748487041286,-442.1269078,0.00019452,2]
[362844250,1748487041298,-430.0,0.00019452,2]
[362844251,1748487041308,-430.0,0.00019452,2]
[362844252,1748487041318,-430.0,0.00019452,2]
[362844253,1748487041328,-430.0,0.00019452,2]
[362844254,1748487041337,-490.51,0.00019452,2]
[362844255,1748487041346,-430.0,0.00019452,2]
[362844256,1748487041355,-448.41938041,0.00019452,2]
[362844257,1748487041365,-448.07,0.00019452,2]
[362844258,1748487041374,-430.0,0.00019452,2]
[362844259,1748487041383,-430.0,0.00019452,2]
[362844260,1748487041392,-430.0,0.00019452,2]
[362844261,1748487041402,-430.0,0.00019452,2]
[362844262,1748487041411,-440.84648897,0.00019452,2]
[362844263,1748487041420,-616.43,0.00019452,2]
[362844264,1748487041429,-430.0,0.00019452,2]
[362844265,1748487041438,-454.74852935,0.00019452,2]
[362844266,1748487041448,-430.0,0.00019452,2]
[362844267,1748487041457,-430.0,0.00019452,2]
[362844268,1748487041466,-430.0,0.00019452,2]